fUST/lending_fUST_20241120
["ID","MTS","AMOUNT","RATE_DAILY","PERIOD"]
[342748811,1732098688679,-185.603964,0.00026921,2]
[342748812,1732098688693,-823.0,0.00026925,2]
[342748813,1732098688707,-500.0,0.00026949,7]
[342748814,1732098688721,-5000.0,0.00027,30]
[342748815,1732098688734,-5000.0,0.00027,30]
[342748816,1732098688747,-5000.0,0.00027,30]
[342748817,1732098688759,-5000.0,0.00027,30]
[342748818,1732098688772,-873.37,0.00027,30]
[342748819,1732098688790,-3449.84517611,0.00027,4]
[342748820,1732098688808,-160.0,0.00027,120]
[342748821,1732098688821,-454.74554258,0.00027,4]
[342748822,1732098688834,-465.0,0.00027036,2]
[342748823,1732098688848,-585.33102149,0.00027096,2]
[342748824,1732098688861,-300.0,0.000271,2]
[342748825,1732098688875,-300.0,0.000271,2]
[342748826,1732098688892,-500.0,0.00027123,7]
[342748827,1732098688905,-500.0,0.00027123,7]
[342748828,1732098688917,-635.74,0.00027123,7]
[342748829,1732098688930,-616.79,0.00027123,7]
[342748830,1732098688943,-648.76,0.00027123,7]
[342748831,1732098688956,-837.88,0.00027123,7]
[342748832,1732098688969,-614.76,0.00027123,7]
[342748833,1732098688983,-553.46,0.00027123,7]
[342748834,1732098688995,-1142.87,0.00027123,7]
[342748835,1732098689010,-586.55,0.00027123,7]
[342748836,1732098689024,-545.2154977,0.00027123,7]
[342748837,1732098689041,-518.86,0.00027123,7]
[342748838,1732098689054,-512.06,0.00027123,7]
[342748839,1732098689067,-958.07,0.00027123,7]
[342748840,1732098689080,-500.0,0.00027123,7]
[342748841,1732098689093,-500.0,0.00027123,7]
[342748842,1732098689106,-275.87,0.00027123,2]
[342748843,1732098689118,-518.73,0.00027123,7]
[342748844,1732098689130,-1123.69,0.00027123,7]
[342748845,1732098689143,-645.57,0.00027123,7]
[342748846,1732098689155,-500.0,0.00027123,7]
[342748847,1732098689168,-945.04,0.00027123,7]
[342748848,1732098689180,-500.0,0.00027123,7]
[342748849,1732098689193,-561.21,0.00027123,7]
[342748850,1732098689205,-599.35,0.00027123,7]
[342748851,1732098689218,-829.07,0.00027123,7]
[342748852,1732098689229,-500.0,0.00027123,7]
[342748853,1732098689242,-838.19,0.00027123,7]
[342748854,1732098689253,-1261.05,0.00027123,7]
[342748855,1732098689265,-500.0,0.00027123,7]
[342748856,1732098689276,-572.89,0.00027123,7]
[342748857,1732098689297,-492.24369757,0.00027123,7]
[342748858,1732098689309,-760.12,0.00027123,7]
[342748859,1732098689321,-802.01,0.00027123,7]
[342748860,1732098689334,-774.31,0.00027123,7]
[342748861,1732098689347,-618.19,0.00027123,7]
[342748862,1732098689359,-789.67,0.00027123,7]
[342748863,1732098689372,-711.02,0.00027123,7]
[342748864,1732098689385,-523.39,0.00027123,7]
[342748865,1732098689397,-480.8117428,0.00027123,7]
[342748866,1732098689410,-992.86,0.00027123,7]
[342748867,1732098689422,-629.97,0.00027123,7]
[342748868,1732098689434,-316.51562873,0.00027123,7]
[342748869,1732098689446,-781.36,0.00027123,7]
[342748870,1732098689460,-263.12,0.00027123,7]
[342748871,1732098689473,-901.62,0.00027123,7]
[342748872,1732098689485,-553.39,0.00027123,7]
[342748873,1732098689497,-408.73994662,0.00027123,7]
[342748874,1732098689509,-500.0,0.00027123,7]
[342748875,1732098689521,-500.0,0.00027123,7]
[342748876,1732098689536,-902.77,0.00027123,7]
[342748877,1732098689547,-631.46986556,0.00027123,7]
[342748878,1732098689559,-602.4,0.00027123,7]
[342748879,1732098689571,-902.25,0.00027123,7]
[342748880,1732098689583,-578.43,0.00027123,7]
[342748881,1732098689594,-500.0,0.00027123,7]
[342748882,1732098689606,-22918.44,0.00027123,7]
[342748883,1732098689618,-2748.58,0.00027123,7]
[342748884,1732098689817,-500.0,0.00027123,7]
[342748885,1732098689833,-2295.85,0.00027123,7]
[342748886,1732098689842,-1877.29,0.00027123,7]
[342748887,1732098689853,-1194.38,0.00027123,7]
[342748888,1732098689863,-739.28,0.00027123,7]
[342748889,1732098689872,-3097.05,0.00027123,7]
[342748890,1732098689883,-528.56,0.00027123,7]
[342748891,1732098689893,-924.07,0.00027123,7]
[342748892,1732098689902,-1005.07,0.00027123,7]
[342748893,1732098689912,-520.37,0.00027123,7]
[342748894,1732098689921,-656.47,0.00027123,7]
[342748895,1732098689931,-1122.57,0.00027123,7]
[342748896,1732098689941,-720.66,0.00027123,7]
[342748897,1732098689951,-666.72,0.00027123,7]
[342748898,1732098689960,-911.96,0.00027123,7]
[342748899,1732098689969,-500.0,0.00027123,7]
[342748900,1732098689979,-739.82,0.00027123,7]
[342748901,1732098689988,-500.0,0.00027123,7]
[342748902,1732098689998,-526.88,0.00027123,7]
[342748903,1732098690008,-808.24,0.00027123,7]
[342748904,1732098690017,-550.61,0.00027123,7]
[342748905,1732098690026,-628.93,0.00027123,7]
[342748906,1732098690041,-889.46,0.00027123,7]
[342748907,1732098690050,-608.25,0.00027123,7]
[342748908,1732098690059,-4981.89,0.00027123,7]
[342748909,1732098690068,-931.0,0.00027123,7]
[342748910,1732098690078,-584.96,0.00027123,7]
[342748911,1732098690087,-500.0,0.00027123,7]
[342748912,1732098690097,-3228.47,0.00027123,7]
[342748913,1732098690106,-903.73,0.00027123,7]
[342748914,1732098690116,-500.0,0.00027123,7]
[342748915,1732098690125,-5887.59,0.00027123,7]
[342748916,1732098690135,-545.65,0.00027123,7]
[342748917,1732098690144,-527.75,0.00027123,7]
[342748918,1732098690153,-2693.86,0.00027123,7]
[342748919,1732098690163,-571.31,0.00027123,7]
[342748920,1732098690173,-772.94,0.00027123,7]
[342748921,1732098690182,-1287.91,0.00027123,7]
[342748922,1732098690192,-3378.45,0.00027123,7]
[342748923,1732098690202,-720.6,0.00027123,7]
[342748924,1732098690213,-378.23140539,0.00027123,7]
[342748925,1732098690222,-3743.65,0.00027123,7]
[342748926,1732098690232,-606.03,0.00027123,7]
[342748927,1732098690242,-975.02,0.00027123,7]
[342748928,1732098690251,-454.06324687,0.0002725,4]
[342748929,1732098690261,-500.0,0.00027397,7]
[342748930,1732098690271,-500.0,0.00027397,7]
[342748931,1732098690284,-635.74,0.00027397,7]
[342748932,1732098690293,-616.79,0.00027397,7]
[342748933,1732098690301,-648.76,0.00027397,7]
[342748934,1732098690310,-837.88,0.00027397,7]
[342748935,1732098690320,-614.76,0.00027397,7]
[342748936,1732098690329,-553.46,0.00027397,7]
[342748937,1732098690339,-1142.87,0.00027397,7]
[342748938,1732098690348,-586.55,0.00027397,7]
[342748939,1732098690358,-518.86,0.00027397,7]
[342748940,1732098690368,-512.06,0.00027397,7]
[342748941,1732098690377,-958.07,0.00027397,7]
[342748942,1732098690387,-500.0,0.00027397,7]
[342748943,1732098690397,-601.07353794,0.00027397,7]
[342748944,1732098690407,-275.87,0.00027397,2]
[342748945,1732098690416,-518.73,0.00027397,7]
[342748946,1732098690426,-1123.69,0.00027397,7]
[342748947,1732098690436,-645.57,0.00027397,7]
[342748948,1732098690446,-396.29413592,0.00027397,7]
[342748949,1732098690457,-945.04,0.00027397,7]
[342748950,1732098690467,-500.0,0.00027397,7]
[342748951,1732098690477,-561.21,0.00027397,7]
[342748952,1732098690489,-599.35,0.00027397,7]
[342748953,1732098690499,-829.07,0.00027397,7]
[342748954,1732098690509,-500.0,0.00027397,7]
[342748955,1732098690520,-838.19,0.00027397,7]
[342748956,1732098690529,-1261.05,0.00027397,7]
[342748957,1732098690542,-572.89,0.00027397,7]
[342748958,1732098690552,-500.0,0.00027397,7]
[342748959,1732098690562,-501.76867324,0.00027397,7]
[342748960,1732098690572,-760.12,0.00027397,7]
[342748961,1732098690582,-802.01,0.00027397,7]
[342748962,1732098690592,-774.31,0.00027397,7]
[342748963,1732098690602,-618.19,0.00027397,7]
[342748964,1732098690612,-789.67,0.00027397,7]
[342748965,1732098690622,-711.02,0.00027397,7]
[342748966,1732098690633,-523.39,0.00027397,7]
[342748967,1732098690643,-992.86,0.00027397,7]
[342748968,1732098690653,-629.97,0.00027397,7]
[342748969,1732098690664,-781.36,0.00027397,7]
[342748970,1732098690674,-901.62,0.00027397,7]
[342748971,1732098690684,-553.39,0.00027397,7]
[342748972,1732098690693,-500.0,0.00027397,7]
[342748973,1732098690704,-413.12,0.00027397,7]
[342748974,1732098690713,-902.77,0.00027397,7]
[342748975,1732098690723,-602.4,0.00027397,7]
[342748976,1732098690733,-902.25,0.00027397,7]
[342748977,1732098690743,-578.43,0.00027397,7]
[342748978,1732098690752,-500.0,0.00027397,7]
[342748979,1732098690762,-22918.44,0.00027397,7]
[342748980,1732098690773,-2748.58,0.00027397,7]
[342748981,1732098690783,-500.0,0.00027397,7]
[342748982,1732098690794,-2295.85,0.00027397,7]
[342748983,1732098690806,-1877.29,0.00027397,7]
[342748984,1732098690818,-500.0,0.00027397,7]
[342748985,1732098690829,-1194.38,0.00027397,7]
[342748986,1732098690839,-739.28,0.00027397,7]
[342748987,1732098690851,-3097.05,0.00027397,7]
[342748988,1732098690861,-500.0,0.00027397,5]
[342748989,1732098690870,-528.56,0.00027397,7]
[342748990,1732098690882,-924.07,0.00027397,7]
[342748991,1732098690892,-1005.07,0.00027397,7]
[342748992,1732098690902,-520.37,0.00027397,7]
[342748993,1732098690912,-656.47,0.00027397,7]
[342748994,1732098690922,-1122.57,0.00027397,7]
[342748995,1732098690932,-720.66,0.00027397,7]
[342748996,1732098690942,-666.72,0.00027397,7]
[342748997,1732098690952,-911.96,0.00027397,7]
[342748998,1732098690962,-183.04160526,0.00027397,7]
[342748999,1732098690973,-739.82,0.00027397,7]
[342749000,1732098690983,-500.0,0.00027397,7]
[342749001,1732098690993,-526.88,0.00027397,7]
[342749002,1732098691003,-808.24,0.00027397,7]
[342749003,1732098691013,-550.61,0.00027397,7]
[342749004,1732098691023,-628.93,0.00027397,7]
[342749005,1732098691034,-889.46,0.00027397,7]
[342749006,1732098691044,-608.25,0.00027397,7]
[342749007,1732098691054,-4981.89,0.00027397,7]
[342749008,1732098691063,-931.0,0.00027397,7]
[342749009,1732098691073,-584.96,0.00027397,7]
[342749010,1732098691082,-500.0,0.00027397,7]
[342749011,1732098691091,-3228.47,0.00027397,7]
[342749012,1732098691101,-903.73,0.00027397,7]
[342749013,1732098691111,-500.0,0.00027397,7]
[342749014,1732098691121,-5887.59,0.00027397,7]
[342749015,1732098691131,-545.65,0.00027397,7]
[342749016,1732098691140,-527.75,0.00027397,7]
[342749017,1732098691150,-2693.86,0.00027397,7]
[342749018,1732098691160,-571.31,0.00027397,7]
[342749019,1732098691170,-772.94,0.00027397,7]
[342749020,1732098691180,-1287.91,0.00027397,7]
[342749021,1732098691190,-3378.45,0.00027397,7]
[342749022,1732098691201,-720.6,0.00027397,7]
[342749023,1732098691211,-3743.65,0.00027397,7]
[342749024,1732098691221,-606.03,0.00027397,7]
[342749025,1732098691231,-975.02,0.00027397,7]
[342749026,1732098691241,-171.11280445,0.00027397,2]
[342749027,1732098691250,-1114.63,0.00027407,2]
[342749028,1732098691260,-3267.51765103,0.0002743,30]
[342749029,1732098691270,-8000.0,0.000275,12]
[342749030,1732098691279,-311.09802273,0.0002755,2]
[342749031,1732098691292,-2907.95793855,0.0002762,2]
[342749032,1732098691302,-500.0,0.00027671,7]
[342749033,1732098691312,-504.08126978,0.00027671,7]
[342749034,1732098691322,-620.64386658,0.00027671,7]
[342749035,1732098691331,-635.74,0.00027671,7]
[342749036,1732098691340,-616.79,0.00027671,7]
[342749037,1732098691350,-648.76,0.00027671,7]
[342749038,1732098691359,-837.88,0.00027671,7]
[342749039,1732098691369,-614.76,0.00027671,7]
[342749040,1732098691379,-553.46,0.00027671,7]
[342749041,1732098691390,-1142.87,0.00027671,7]
[342749042,1732098691400,-586.55,0.00027671,7]
[342749043,1732098691410,-518.86,0.00027671,7]
[342749044,1732098691421,-512.06,0.00027671,7]
[342749045,1732098691431,-958.07,0.00027671,7]
[342749046,1732098691441,-500.0,0.00027671,7]
[342749047,1732098691451,-275.87,0.00027671,2]
[342749048,1732098691460,-518.73,0.00027671,7]
[342749049,1732098691470,-1123.69,0.00027671,7]
[342749050,1732098691480,-645.57,0.00027671,7]
[342749051,1732098691490,-945.04,0.00027671,7]
[342749052,1732098691500,-500.0,0.00027671,7]
[342749053,1732098691511,-561.21,0.00027671,7]
[342749054,1732098691521,-599.35,0.00027671,7]
[342749055,1732098691530,-829.07,0.00027671,7]
[342749056,1732098691544,-500.0,0.00027671,7]
[342749057,1732098691554,-838.19,0.00027671,7]
[342749058,1732098691563,-1261.05,0.00027671,7]
[342749059,1732098691573,-572.89,0.00027671,7]
[342749060,1732098691583,-500.0,0.00027671,7]
[342749061,1732098691593,-760.12,0.00027671,7]
[342749062,1732098691602,-802.01,0.00027671,7]
[342749063,1732098691613,-774.31,0.00027671,7]
[342749064,1732098691623,-618.19,0.00027671,7]
[342749065,1732098691633,-789.67,0.00027671,7]
[342749066,1732098691642,-711.02,0.00027671,7]
[342749067,1732098691653,-523.39,0.00027671,7]
[342749068,1732098691663,-992.86,0.00027671,7]
[342749069,1732098691672,-629.97,0.00027671,7]
[342749070,1732098691682,-781.36,0.00027671,7]
[342749071,1732098691691,-901.62,0.00027671,7]
[342749072,1732098691701,-553.39,0.00027671,7]
[342749073,1732098691711,-500.0,0.00027671,7]
[342749074,1732098691720,-902.77,0.00027671,7]
[342749075,1732098691730,-602.4,0.00027671,7]
[342749076,1732098691739,-902.25,0.00027671,7]
[342749077,1732098691749,-578.43,0.00027671,7]
[342749078,1732098691759,-289.05150233,0.00027671,7]
[342749079,1732098691770,-22918.44,0.00027671,7]
[342749080,1732098691779,-2748.58,0.00027671,7]
[342749081,1732098691792,-500.0,0.00027671,7]
[342749082,1732098691802,-2295.85,0.00027671,7]
[342749083,1732098691817,-1194.38,0.00027671,7]
[342749084,1732098691826,-1877.29,0.00027671,7]
[342749085,1732098691836,-739.28,0.00027671,7]
[342749086,1732098691847,-3097.05,0.00027671,7]
[342749087,1732098691856,-528.56,0.00027671,7]
[342749088,1732098691866,-924.07,0.00027671,7]
[342749089,1732098691875,-1005.07,0.00027671,7]
[342749090,1732098691886,-520.37,0.00027671,7]
[342749091,1732098691896,-656.47,0.00027671,7]
[342749092,1732098691906,-1122.57,0.00027671,7]
[342749093,1732098691916,-720.66,0.00027671,7]
[342749094,1732098691926,-666.72,0.00027671,7]
[342749095,1732098691936,-911.96,0.00027671,7]
[342749096,1732098691946,-739.82,0.00027671,7]
[342749097,1732098691956,-212.4722992,0.00027671,7]
[342749098,1732098691966,-526.88,0.00027671,7]
[342749099,1732098691976,-808.24,0.00027671,7]
[342749100,1732098691987,-550.61,0.00027671,7]
[342749101,1732098691997,-628.93,0.00027671,7]
[342749102,1732098692007,-889.46,0.00027671,7]
[342749103,1732098692016,-608.25,0.00027671,7]
[342749104,1732098692026,-4981.89,0.00027671,7]
[342749105,1732098692038,-931.0,0.00027671,7]
[342749106,1732098692048,-584.96,0.00027671,7]
[342749107,1732098692057,-500.0,0.00027671,7]
[342749108,1732098692067,-3228.47,0.00027671,7]
[342749109,1732098692076,-903.73,0.00027671,7]
[342749110,1732098692086,-500.0,0.00027671,7]
[342749111,1732098692096,-5887.59,0.00027671,7]
[342749112,1732098692106,-545.65,0.00027671,7]
[342749113,1732098692115,-527.75,0.00027671,7]
[342749114,1732098692125,-2693.86,0.00027671,7]
[342749115,1732098692135,-571.31,0.00027671,7]
[342749116,1732098692145,-772.94,0.00027671,7]
[342749117,1732098692155,-1287.91,0.00027671,7]
[342749118,1732098692166,-3378.45,0.00027671,7]
[342749119,1732098692175,-720.6,0.00027671,7]
[342749120,1732098692185,-3743.65,0.00027671,7]
[342749121,1732098692194,-606.03,0.00027671,7]
[342749122,1732098692204,-975.02,0.00027671,7]
[342749123,1732098692213,-5000.0,0.00027684,30]
[342749124,1732098692223,-103983.30261,0.000277,30]
[342749125,1732098692232,-174099.385908,0.000277,10]
[342749126,1732098692242,-8794.72,0.000277,30]
[342749127,1732098692252,-17156.34,0.000277,14]
[342749128,1732098692262,-500.0,0.00027771,7]
[342749129,1732098692402,-408.0,0.00027836,2]
[342749130,1732098692413,-585.33102149,0.0002785,2]
[342749131,1732098692422,-948.50246187,0.00027945,7]
[342749132,1732098692432,-635.74,0.00027945,7]
[342749133,1732098692441,-616.79,0.00027945,7]
[342749134,1732098692451,-648.76,0.00027945,7]
[342749135,1732098692460,-837.88,0.00027945,7]
[342749136,1732098692470,-614.76,0.00027945,7]
[342749137,1732098692480,-553.46,0.00027945,7]
[342749138,1732098692489,-1142.87,0.00027945,7]
[342749139,1732098692499,-586.55,0.00027945,7]
[342749140,1732098692508,-518.86,0.00027945,7]
[342749141,1732098692518,-512.06,0.00027945,7]
[342749142,1732098692528,-958.07,0.00027945,7]
[342749143,1732098692541,-500.0,0.00027945,7]
[342749144,1732098692551,-275.87,0.00027945,2]
[342749145,1732098692561,-1123.69,0.00027945,7]
[342749146,1732098692571,-518.73,0.00027945,7]
[342749147,1732098692583,-645.57,0.00027945,7]
[342749148,1732098692595,-945.04,0.00027945,7]
[342749149,1732098692605,-272.81,0.00027945,7]
[342749150,1732098692616,-561.21,0.00027945,7]
[342749151,1732098692628,-599.35,0.00027945,7]
[342749152,1732098692638,-829.07,0.00027945,7]
[342749153,1732098692647,-500.0,0.00027945,7]
[342749154,1732098692657,-838.19,0.00027945,7]
[342749155,1732098692666,-1261.05,0.00027945,7]
[342749156,1732098692676,-572.89,0.00027945,7]
[342749157,1732098692685,-645.81192322,0.00027945,7]
[342749158,1732098692695,-760.12,0.00027945,7]
[342749159,1732098692704,-802.01,0.00027945,7]
[342749160,1732098692714,-774.31,0.00027945,7]
[342749161,1732098692724,-618.19,0.00027945,7]
[342749162,1732098692734,-789.67,0.00027945,7]
[342749163,1732098692743,-711.02,0.00027945,7]
[342749164,1732098692753,-523.39,0.00027945,7]
[342749165,1732098692762,-992.86,0.00027945,7]
[342749166,1732098692772,-629.97,0.00027945,7]
[342749167,1732098692782,-781.36,0.00027945,7]
[342749168,1732098692794,-901.62,0.00027945,7]
[342749169,1732098692805,-553.39,0.00027945,7]
[342749170,1732098692816,-500.0,0.00027945,7]
[342749171,1732098692826,-902.77,0.00027945,7]
[342749172,1732098692836,-602.4,0.00027945,7]
[342749173,1732098692846,-902.25,0.00027945,7]
[342749174,1732098692856,-578.43,0.00027945,7]
[342749175,1732098692866,-22918.44,0.00027945,7]
[342749176,1732098692875,-2748.58,0.00027945,7]
[342749177,1732098692887,-500.0,0.00027945,7]
[342749178,1732098692897,-2295.85,0.00027945,7]
[342749179,1732098692906,-1194.38,0.00027945,7]
[342749180,1732098692915,-1877.29,0.00027945,7]
[342749181,1732098692924,-739.28,0.00027945,7]
[342749182,1732098692933,-3097.05,0.00027945,7]
[342749183,1732098692943,-528.56,0.00027945,7]
[342749184,1732098692952,-924.07,0.00027945,7]
[342749185,1732098692961,-1005.07,0.00027945,7]
[342749186,1732098692970,-520.37,0.00027945,7]
[342749187,1732098692979,-656.47,0.00027945,7]
[342749188,1732098692989,-1122.57,0.00027945,7]
[342749189,1732098692999,-720.66,0.00027945,7]
[342749190,1732098693009,-666.72,0.00027945,7]
[342749191,1732098693019,-911.96,0.00027945,7]
[342749192,1732098693029,-739.82,0.00027945,7]
[342749193,1732098693041,-526.88,0.00027945,7]
[342749194,1732098693051,-808.24,0.00027945,7]
[342749195,1732098693060,-550.61,0.00027945,7]
[342749196,1732098693069,-628.93,0.00027945,7]
[342749197,1732098693079,-889.46,0.00027945,7]
[342749198,1732098693088,-608.25,0.00027945,7]
[342749199,1732098693098,-4981.89,0.00027945,7]
[342749200,1732098693108,-931.0,0.00027945,7]
[342749201,1732098693118,-584.96,0.00027945,7]
[342749202,1732098693128,-551.35324393,0.00027945,7]
[342749203,1732098693137,-3228.47,0.00027945,7]
[342749204,1732098693147,-903.73,0.00027945,7]
[342749205,1732098693156,-268.3,0.00027945,7]
[342749206,1732098693166,-5887.59,0.00027945,7]
[342749207,1732098693176,-545.65,0.00027945,7]
[342749208,1732098693186,-527.75,0.00027945,7]
[342749209,1732098693195,-2693.86,0.00027945,7]
[342749210,1732098693205,-571.31,0.00027945,7]
[342749211,1732098693214,-772.94,0.00027945,7]
[342749212,1732098693224,-1287.91,0.00027945,7]
[342749213,1732098693234,-3378.45,0.00027945,7]
[342749214,1732098693244,-720.6,0.00027945,7]
[342749215,1732098693253,-3743.65,0.00027945,7]
[342749216,1732098693263,-606.03,0.00027945,7]
[342749217,1732098693272,-305487.40600919,0.00028,30]
[342749218,1732098693473,-1246016.19575815,0.00028,30]
[342749219,1732098693483,-20912.62312617,0.00028,30]
[342749220,1732098693493,-300.0,0.000281,2]
[342749221,1732098693502,-300.0,0.000281,2]
[342749222,1732098693512,-635.93,0.00028219,7]
[342749223,1732098693521,-616.87134049,0.00028219,7]
[342749224,1732098693531,-648.84809007,0.00028219,7]
[342749225,1732098693545,-837.93367055,0.00028219,7]
[342749226,1732098693557,-614.8,0.00028219,7]
[342749227,1732098693568,-553.65085538,0.00028219,7]
[342749228,1732098693577,-1143.09608176,0.00028219,7]
[342749229,1732098693586,-586.63,0.00028219,7]
[342749230,1732098693596,-518.88149185,0.00028219,7]
[342749231,1732098693606,-512.1273402,0.00028219,7]
[342749232,1732098693616,-958.18489865,0.00028219,7]
[342749233,1732098693625,-263.41,0.00028219,7]
[342749234,1732098693635,-275.87,0.00028219,2]
[342749235,1732098693644,-1123.81,0.00028219,7]
[342749236,1732098693654,-518.75501218,0.00028219,7]
[342749237,1732098693665,-645.74062075,0.00028219,7]
[342749238,1732098693675,-945.12291845,0.00028219,7]
[342749239,1732098693684,-561.30403455,0.00028219,7]
[342749240,1732098693694,-599.42560105,0.00028219,7]
[342749241,1732098693704,-829.2662451,0.00028219,7]
[342749242,1732098693713,-402.15,0.00028219,7]
[342749243,1732098693723,-838.40268969,0.00028219,7]
[342749244,1732098693732,-1261.15,0.00028219,7]
[342749245,1732098693743,-572.97031315,0.00028219,7]
[342749246,1732098693752,-760.22258271,0.00028219,7]
[342749247,1732098693762,-802.18,0.00028219,7]
[342749248,1732098693771,-774.48349647,0.00028219,7]
[342749249,1732098693781,-618.31120406,0.00028219,7]
[342749250,1732098693795,-789.7832656,0.00028219,7]
[342749251,1732098693808,-711.19,0.00028219,7]
[342749252,1732098693819,-523.41925231,0.00028219,7]
[342749253,1732098693829,-992.87233249,0.00028219,7]
[342749254,1732098693839,-630.17977771,0.00028219,7]
[342749255,1732098693850,-781.41425235,0.00028219,7]
[342749256,1732098693860,-901.76978014,0.00028219,7]
[342749257,1732098693870,-553.45798758,0.00028219,7]
[342749258,1732098693882,-471.09,0.00028219,7]
[342749259,1732098693892,-902.98,0.00028219,7]
[342749260,1732098693903,-602.49,0.00028219,7]
[342749261,1732098693912,-902.28,0.00028219,7]
[342749262,1732098693922,-578.55,0.00028219,7]
[342749263,1732098693932,-22918.5056,0.00028219,7]
[342749264,1732098693941,-2748.81393,0.00028219,7]
[342749265,1732098693951,-436.28313911,0.00028219,7]
[342749266,1732098693960,-2295.96032596,0.00028219,7]
[342749267,1732098693970,-1194.60557773,0.00028219,7]
[342749268,1732098693979,-1877.37291699,0.00028219,7]
[342749269,1732098693990,-739.42667095,0.00028219,7]
[342749270,1732098694000,-3097.11581463,0.00028219,7]
[342749271,1732098694010,-528.65358997,0.00028219,7]
[342749272,1732098694020,-924.16741708,0.00028219,7]
[342749273,1732098694029,-1005.26780081,0.00028219,7]
[342749274,1732098694043,-520.56105179,0.00028219,7]
[342749275,1732098694053,-656.62529414,0.00028219,7]
[342749276,1732098694062,-1122.69252034,0.00028219,7]
[342749277,1732098694072,-720.87,0.00028219,7]
[342749278,1732098694081,-666.87494885,0.00028219,7]
[342749279,1732098694090,-912.0554323,0.00028219,7]
[342749280,1732098694100,-740.05704153,0.00028219,7]
[342749281,1732098694110,-526.88742021,0.00028219,7]
[342749282,1732098694119,-808.26,0.00028219,7]
[342749283,1732098694128,-550.78284306,0.00028219,7]
[342749284,1732098694138,-629.1,0.00028219,7]
[342749285,1732098694147,-889.55980234,0.00028219,7]
[342749286,1732098694156,-608.31050582,0.00028219,7]
[342749287,1732098694167,-4981.90061169,0.00028219,7]
[342749288,1732098694176,-931.01,0.00028219,7]
[342749289,1732098694187,-585.05123056,0.00028219,7]
[342749290,1732098694197,-3228.54888877,0.00028219,7]
[342749291,1732098694206,-903.8158569,0.00028219,7]
[342749292,1732098694215,-5887.62892895,0.00028219,7]
[342749293,1732098694225,-545.8147842,0.00028219,7]
[342749294,1732098694234,-527.85482506,0.00028219,7]
[342749295,1732098694243,-2693.99766491,0.00028219,7]
[342749296,1732098694252,-571.44884986,0.00028219,7]
[342749297,1732098694262,-773.01588411,0.00028219,7]
[342749298,1732098694271,-1287.9857265,0.00028219,7]
[342749299,1732098694282,-3378.68187769,0.00028219,7]
[342749300,1732098694294,-720.77661239,0.00028219,7]
[342749301,1732098694303,-3743.68494154,0.00028219,7]
[342749302,1732098694313,-606.11345513,0.00028219,7]
[342749303,1732098694323,-12289.54501813,0.0002823,2]
[342749304,1732098694333,-3000.0,0.00028299,5]
[342749305,1732098694342,-302.62,0.00028335,120]
[342749306,1732098694352,-470.0,0.00028388,2]
[342749307,1732098694362,-1390.0,0.00028437,17]
[342749308,1732098694372,-305826.23346613,0.00028489,120]
[342749309,1732098694381,-275.87,0.00028493,2]
[342749310,1732098694390,-500.0,0.00028515,5]